bitfinex/quotes_BTCUSD_20240810
["timestamp","ask_amount","ask_price","bid_price","bid_amount"]
[1723250845001,1.27780992,60798.0,60797.0,0.0059141]
[1723250845736,1.27780992,60798.0,60797.0,0.0079141]
[1723250845913,0.94885192,60798.0,60797.0,0.0079141]
[1723250846126,0.94885192,60798.0,60797.0,0.0059141]
[1723250846295,0.94885192,60798.0,60797.0,0.0069141]
[1723250846634,1.27780992,60798.0,60797.0,0.0009141]
[1723250846836,1.27780992,60798.0,60797.0,0.0049141]
[1723250847114,1.27780992,60798.0,60797.0,0.0059141]
[1723250847514,0.94885192,60798.0,60797.0,0.0059141]
[1723250847729,0.94885192,60798.0,60797.0,0.0019141]
[1723250847936,1.27780992,60798.0,60797.0,0.0029141]
[1723250848124,1.81050863,60798.0,60797.0,0.0029141]
[1723250848337,1.81050863,60798.0,60797.0,0.0019141]
[1723250848540,1.81050863,60798.0,60797.0,0.0009141]
[1723250848767,2.14146663,60798.0,60797.0,0.0009141]
[1723250848897,1.92888756,60798.0,60797.0,0.0009141]
[1723250849102,1.93679035,60798.0,60797.0,0.0009141]
[1723250849326,1.93679035,60798.0,60778.0,0.0009141]
[1723250849327,0.685191,60779.0,60778.0,0.0009141]
[1723250849526,0.785191,60779.0,60778.0,0.0009141]
[1723250849739,1.27806692,60779.0,60778.0,0.0009141]
[1723250850090,0.61994492,60779.0,60778.0,0.0009141]
[1723250850544,0.1,60779.0,60778.0,0.0009141]
[1723250850789,0.329034,60784.0,60778.0,0.0009141]
[1723250850903,0.329034,60784.0,60779.0,0.02713784]
[1723250850904,0.164522,60782.0,60779.0,0.02713784]
[1723250851260,0.1,60781.0,60779.0,0.02713784]
[1723250851696,0.1,60781.0,60779.0,0.19166784]
[1723250852093,0.0893,60793.0,60782.0,0.32904]
[1723250852326,0.0893,60793.0,60779.0,0.02713784]
[1723250852327,0.16381492,60792.0,60783.0,0.04389384]
[1723250852527,0.16381492,60792.0,60784.0,0.164516]
[1723250852528,0.164504,60789.0,60784.0,0.164516]
[1723250852730,0.1,60788.0,60784.0,0.164516]
[1723250852978,0.1,60788.0,60785.0,0.02329246]
[1723250853177,0.164515,60785.0,60779.0,0.168529]
[1723250853394,0.164515,60785.0,60780.0,0.164527]
[1723250853575,0.164515,60785.0,60779.0,0.164529]
[1723250853576,0.164519,60784.0,60779.0,0.164529]
[1723250853979,0.758029,60788.0,60779.0,0.005]
[1723250853980,0.16381492,60783.0,60779.0,0.005]
[1723250854188,0.493582,60780.0,60779.0,0.005]
[1723250854327,0.493582,60780.0,60778.0,0.0009141]
[1723250854328,0.16453,60779.0,60778.0,0.0009141]
[1723250854530,0.16453,60779.0,60778.0,0.01764284]
[1723250854531,0.1,60779.0,60778.0,0.01764284]
[1723250854730,0.682891,60779.0,60778.0,0.0009141]
[1723250855157,0.84670592,60779.0,60778.0,0.0009141]
[1723250855333,1.17576692,60779.0,60778.0,0.0009141]
[1723250855543,1.17776692,60779.0,60778.0,0.0249141]
[1723250855759,1.50682792,60779.0,60778.0,0.0249141]
[1723250856120,1.61912792,60779.0,60778.0,0.0249141]
[1723250856317,1.64112792,60779.0,60778.0,0.0139141]
[1723250856937,1.64936862,60779.0,60778.0,0.0139141]
[1723250857185,1.99842962,60779.0,60778.0,0.0139141]
[1723250857338,1.97742962,60779.0,60778.0,0.0009141]
[1723250857540,2.16157932,60779.0,60778.0,0.0009141]
[1723250857780,2.16157932,60779.0,60778.0,0.0029141]
[1723250857781,2.00042962,60779.0,60778.0,0.0029141]
[1723250857980,2.16824185,60779.0,60778.0,0.0029141]
[1723250858239,2.16824185,60779.0,60778.0,0.0009141]
[1723250858414,2.17624185,60779.0,60778.0,0.0019141]
[1723250858755,2.18024185,60779.0,60778.0,0.0019141]
[1723250859046,2.18824185,60779.0,60778.0,0.0029141]
[1723250859180,2.18824185,60779.0,60778.0,0.0019141]
[1723250859181,1.66036862,60779.0,60778.0,0.0019141]
[1723250859386,1.68036862,60779.0,60778.0,0.0019141]
[1723250859658,1.68836862,60779.0,60778.0,0.0029141]
[1723250859990,1.67636862,60779.0,60778.0,0.0019141]
[1723250860437,1.66836862,60779.0,60778.0,0.0029141]
[1723250860632,1.68836862,60779.0,60778.0,0.0029141]
[1723250860845,1.67636862,60779.0,60778.0,0.0019141]
[1723250861059,0.01,60772.0,60756.0,6.603e-05]
[1723250861286,0.164588,60758.0,60756.0,6.603e-05]
[1723250861593,0.329164,60760.0,60756.0,6.603e-05]
[1723250861780,0.164588,60758.0,60757.0,0.04911448]
[1723250861987,0.49377,60757.0,60756.0,6.603e-05]
[1723250862161,0.16458,60761.0,60756.0,6.603e-05]
[1723250862373,0.16381492,60760.0,60756.0,0.17665803]
[1723250862572,0.414235,60766.0,60756.0,0.17665803]
[1723250862573,0.001,60758.0,60757.0,0.27599]
[1723250862774,0.164578,60762.0,60757.0,0.27599]
[1723250862989,0.42912,60769.0,60756.0,6.603e-05]
[1723250862990,0.16459,60757.0,60756.0,6.603e-05]
[1723250863203,0.49377,60757.0,60756.0,6.603e-05]
[1723250863407,1.51184492,60757.0,60756.0,6.603e-05]
[1723250863559,1.28266492,60757.0,60756.0,6.603e-05]
[1723250864485,1.67519462,60757.0,60756.0,0.00306603]
[1723250864683,1.69819462,60757.0,60756.0,0.00306603]
[1723250865004,1.53404492,60757.0,60756.0,6.603e-05]
[1723250865234,1.52404492,60757.0,60756.0,6.603e-05]
[1723250865404,1.54704492,60757.0,60756.0,0.00106603]
[1723250865768,1.53904492,60757.0,60756.0,6.603e-05]
[1723250865973,1.17686492,60757.0,60756.0,0.00106603]
[1723250866181,0.113,60757.0,60756.0,0.00106603]
[1723250866384,0.27759,60757.0,60756.0,0.04524223]
[1723250866590,0.60677,60757.0,60756.0,0.00106603]
[1723250866800,0.113,60757.0,60756.0,0.00106603]
[1723250866990,0.17259,60757.0,60756.0,0.00106603]
[1723250867211,0.118,60757.0,60756.0,0.00106603]
[1723250867432,0.118,60757.0,60756.0,6.603e-05]
[1723250867433,0.01,60757.0,60756.0,6.603e-05]
[1723250867633,0.014,60757.0,60756.0,0.03586698]
[1723250867813,0.004,60757.0,60756.0,0.03586698]
[1723250868052,0.004,60757.0,60756.0,0.52964398]
[1723250868263,0.004,60757.0,60756.0,1.05522898]
[1723250868463,0.164576,60762.0,60756.0,0.31185898]
[1723250868663,0.164576,60762.0,60757.0,0.22311219]
[1723250868871,0.1108,60770.0,60757.0,0.22311219]
[1723250868872,0.329125,60768.0,60757.0,0.05852319]
[1723250869071,0.329088,60774.0,60765.0,0.1114]
[1723250869315,0.329074,60777.0,60765.0,0.1114]
[1723250869514,0.49288892,60777.0,60765.0,0.440535]
[1723250869743,0.164539,60776.0,60770.0,0.164554]
[1723250869913,0.164545,60774.0,60769.0,0.085]
[1723250870120,0.164546,60773.0,60769.0,0.085]
[1723250870896,0.34891492,60772.0,60762.0,0.1114]
[1723250871094,0.002,60768.0,60763.0,0.01114]
[1723250871309,0.16381492,60767.0,60763.0,0.01114]
[1723250871514,0.16459,60757.0,60756.0,0.00098123]
[1723250871719,0.34969,60757.0,60756.0,0.00098123]
[1723250871923,0.26459,60757.0,60756.0,0.00098123]
[1723250872098,0.59377,60757.0,60756.0,0.00098123]
[1723250873207,0.92295,60757.0,60756.0,0.00098123]
[1723250873566,0.1,60757.0,60756.0,0.11238123]
[1723250873903,0.329159,60761.0,60756.0,0.12362935]
[1723250874123,0.1,60763.0,60756.0,0.12362935]
[1723250874124,0.59297892,60760.0,60756.0,0.12362935]
[1723250874316,0.002,60757.0,60756.0,0.13262935]
[1723250874672,0.16659,60757.0,60756.0,0.13262935]
[1723250875033,0.26459,60757.0,60756.0,0.12362935]
[1723250875234,0.0851,60769.0,60756.0,0.12362935]
[1723250875235,0.001,60761.0,60760.0,0.164581]
[1723250875503,0.001,60761.0,60760.0,0.605144]
[1723250876490,0.164565,60766.0,60760.0,0.605143]
[1723250876695,0.16381492,60774.0,60760.0,0.605143]
[1723250876696,0.1,60765.0,60760.0,0.27598]
[1723250876928,0.164569,60765.0,60760.0,0.1114]
[1723250877079,0.1,60764.0,60760.0,0.16565278]
[1723250877484,0.1,60764.0,60760.0,0.1154]
[1723250877485,0.164577,60762.0,60760.0,0.1154]
[1723250877681,0.164577,60762.0,60760.0,0.1164]
[1723250878002,0.264573,60764.0,60760.0,0.1124]
[1723250878204,0.264573,60764.0,60760.0,0.1114]
[1723250878693,0.1,60764.0,60760.0,0.03]
[1723250878839,0.164579,60761.0,60760.0,0.03]
[1723250879247,0.34891492,60761.0,60756.0,0.00098123]
[1723250879450,0.82295,60757.0,60756.0,0.00098123]
[1723250879654,1.52074492,60757.0,60756.0,0.00098123]
[1723250880394,1.19156492,60757.0,60756.0,0.00098123]
[1723250880613,0.75758492,60757.0,60756.0,0.00198123]
[1723250880985,1.08676492,60757.0,60756.0,0.00098123]
[1723250881201,1.69132731,60757.0,60756.0,0.00098123]
[1723250881449,1.69132731,60757.0,60756.0,0.00198123]
[1723250881450,1.98957418,60757.0,60756.0,0.00198123]
[1723250881699,2.31775418,60757.0,60756.0,0.001]
[1723250881913,2.31775418,60757.0,60756.0,0.00096]
[1723250881914,1.82799179,60757.0,60756.0,0.00096]
[1723250882402,1.79799179,60757.0,60756.0,0.00096]
[1723250882620,1.80099179,60757.0,60756.0,0.00096]
[1723250882852,1.81099179,60757.0,60756.0,0.00096]
[1723250883401,1.81099179,60757.0,60746.0,0.009141]
[1723250883402,1.152224,60752.0,60746.0,0.009141]
[1723250883637,2.15731402,60752.0,60746.0,0.009141]
[1723250883924,2.15732851,60752.0,60746.0,0.009141]
[1723250884238,2.62324744,60752.0,60746.0,0.009141]
[1723250884470,2.98705685,60752.0,60746.0,0.009141]
[1723250884978,0.194636,60740.0,60739.0,0.009152]
[1723250885204,1.98664915,60740.0,60739.0,0.009152]
[1723250885460,2.84625456,60740.0,60739.0,0.009152]
[1723250885914,2.89781696,60740.0,60739.0,0.009152]
[1723250886231,3.21708896,60740.0,60739.0,0.009152]
[1723250886446,3.21708896,60740.0,60736.0,0.009141]
[1723250886447,2.029256,60738.0,60736.0,0.009141]
[1723250886779,2.65174659,60738.0,60736.0,0.009141]
[1723250887005,2.65757375,60738.0,60736.0,0.009141]
[1723250887264,2.45866645,60738.0,60736.0,0.009141]
[1723250887768,2.48105456,60738.0,60736.0,0.009141]
[1723250888263,2.46705456,60738.0,60736.0,0.009141]
[1723250888483,2.48105456,60738.0,60736.0,0.009141]
[1723250888704,2.33589808,60738.0,60736.0,0.009141]
[1723250888927,2.31589808,60738.0,60736.0,0.009141]
[1723250889158,2.18174838,60738.0,60737.0,0.010141]
[1723250890235,2.31851019,60738.0,60737.0,0.010141]
[1723250890445,2.31851333,60738.0,60737.0,0.010141]
[1723250890809,2.47266345,60738.0,60737.0,0.010141]
[1723250891030,2.48266345,60738.0,60737.0,0.010141]
[1723250891251,2.34589808,60738.0,60737.0,0.010141]
[1723250891731,2.06174838,60738.0,60737.0,0.010141]
[1723250891998,1.42370492,60738.0,60737.0,0.010141]
[1723250892210,1.43370492,60738.0,60737.0,0.010141]
[1723250892437,1.62464159,60738.0,60737.0,0.010141]
[1723250892666,1.72944159,60738.0,60737.0,0.010141]
[1723250892930,1.70944219,60738.0,60737.0,0.010141]
[1723250893197,1.84244219,60738.0,60737.0,0.010141]
[1723250893471,1.84244219,60738.0,60723.0,0.1053141]
[1723250893472,0.299479,60724.0,60723.0,0.0009141]
[1723250893776,0.299479,60724.0,60715.0,0.009119]
[1723250893777,0.03,60716.0,60715.0,0.009119]
[1723250894009,1.49773006,60716.0,60715.0,0.009119]
[1723250894232,1.44972192,60716.0,60715.0,0.009119]
[1723250895146,1.43972192,60716.0,60715.0,0.009119]
[1723250895601,1.45172192,60716.0,60715.0,0.009119]
[1723250895863,1.44172192,60716.0,60715.0,0.009119]
[1723250897264,0.002,60716.0,60715.0,0.113519]
[1723250897495,0.002,60716.0,60715.0,0.71737555]
[1723250897667,0.002,60716.0,60715.0,0.22326555]
[1723250897906,0.002,60716.0,60715.0,0.38796855]
[1723250898118,0.329356,60725.0,60716.0,0.164701]
[1723250898408,0.164686,60722.0,60716.0,0.06657759]
[1723250898597,0.49317392,60724.0,60716.0,0.06657759]
[1723250898598,0.16381492,60724.0,60719.0,0.164692]
[1723250898813,0.264682,60723.0,60720.0,0.1044]
[1723250899033,0.42849692,60723.0,60720.0,0.1044]
[1723250899487,0.1,60723.0,60722.0,0.329369]
[1723250899744,0.164665,60730.0,60725.0,0.106]
[1723250899977,0.164666,60729.0,60725.0,0.106]
[1723250900190,0.1,60728.0,60726.0,0.04631156]
[1723250900383,0.329275,60740.0,60731.0,0.106]
[1723250900582,0.01722,60748.0,60731.0,0.106]
[1723250900583,0.65489366,60739.0,60731.0,0.106]
[1723250900829,0.16381492,60739.0,60731.0,0.106]
[1723250900973,0.164652,60734.0,60731.0,0.106]
[1723250901174,0.16381492,60734.0,60731.0,0.106]
[1723250901405,0.16381492,60734.0,60732.0,0.06657759]
[1723250901639,0.1,60733.0,60732.0,0.06657759]
[1723250903569,0.1,60733.0,60731.0,0.106]
[1723250904352,0.101,60733.0,60731.0,0.106]
[1723250904682,0.1,60732.0,60731.0,0.106]
[1723250905100,0.1,60732.0,60731.0,0.111]
[1723250905292,0.264657,60732.0,60731.0,0.111]
[1723250905496,0.593972,60732.0,60731.0,0.111]
[1723250905700,1.252602,60732.0,60731.0,0.005]
[1723250905954,0.264657,60732.0,60731.0,0.008]
[1723250906158,0.1,60732.0,60731.0,0.17266]
[1723250906357,0.164642,60738.0,60733.0,0.164653]
[1723250906556,0.164649,60736.0,60734.0,0.0599983]
[1723250906756,0.42846392,60735.0,60734.0,0.0599983]
[1723250906966,0.32846392,60735.0,60731.0,0.115]
[1723250907101,0.164657,60732.0,60731.0,0.115]
[1723250907299,0.264657,60732.0,60731.0,0.106]
[1723250907565,0.923287,60732.0,60731.0,0.106]
[1723250907765,0.823327,60729.0,60728.0,0.106]
[1723250907981,0.98714192,60729.0,60728.0,0.106]
[1723250908506,0.65781092,60729.0,60728.0,0.106]
[1723250909100,0.16381492,60729.0,60718.0,0.08184646]
[1723250909311,0.164679,60724.0,60723.0,0.106]
[1723250909524,0.164693,60719.0,60718.0,0.106]
[1723250909733,0.26381492,60724.0,60718.0,0.106]
[1723250909734,0.26381492,60723.0,60718.0,0.18312625]
[1723250910354,0.164693,60719.0,60718.0,0.106]
[1723250910566,0.164689,60721.0,60718.0,0.106]
[1723250910714,0.65789392,60719.0,60718.0,0.106]
[1723250911096,0.65789392,60719.0,60718.0,0.115]
[1723250911292,0.16381492,60719.0,60718.0,0.1274119]
[1723250912104,0.16481492,60719.0,60718.0,0.1384119]
[1723250912329,0.16381492,60719.0,60718.0,0.1274119]
[1723250912505,0.16381492,60719.0,60718.0,0.1184119]
[1723250912717,0.16481492,60719.0,60718.0,0.1274119]
[1723250912918,0.16481492,60719.0,60718.0,0.021]
[1723250912919,2.18193792,60719.0,60718.0,0.021]
[1723250913119,1.80714709,60719.0,60718.0,0.021]
[1723250913319,1.67794709,60719.0,60718.0,0.009]
[1723250913589,1.70094709,60719.0,60718.0,0.009]
[1723250913742,1.70094709,60719.0,60718.0,0.019]
[1723250913743,1.70194709,60719.0,60718.0,0.019]
[1723250914296,0.823505,60716.0,60715.0,0.009119]
[1723250914528,1.5873367,60716.0,60715.0,0.009119]
[1723250914704,1.58770314,60716.0,60715.0,0.009119]
[1723250915060,1.97010514,60716.0,60715.0,0.009119]
[1723250915262,2.01402616,60716.0,60715.0,0.009119]
[1723250915646,2.23731621,60716.0,60715.0,0.009119]
[1723250915870,2.33661621,60716.0,60715.0,0.009119]
[1723250916397,2.33661621,60716.0,60707.0,0.009152]
[1723250916398,0.524152,60710.0,60707.0,0.009152]
[1723250916569,1.97545314,60710.0,60707.0,0.009152]
[1723250916774,2.31890284,60710.0,60707.0,0.009152]
[1723250916980,2.32890284,60710.0,60707.0,0.009152]
[1723250917193,2.16475314,60710.0,60707.0,0.009152]
[1723250917553,2.16479012,60710.0,60707.0,0.009152]
[1723250917954,2.16679012,60710.0,60709.0,0.0019152]
[1723250918268,2.15479012,60710.0,60709.0,0.0009152]
[1723250918483,2.49422512,60710.0,60709.0,0.0009152]
[1723250918723,1.617702,60708.0,60707.0,8.48e-05]
[1723250918925,2.19426815,60708.0,60707.0,8.48e-05]
[1723250919124,2.20426815,60708.0,60707.0,8.48e-05]
[1723250919327,2.53371315,60708.0,60707.0,8.48e-05]
[1723250919940,2.54171315,60708.0,60707.0,0.0010848]
[1723250920092,2.57712982,60708.0,60707.0,0.0010848]
[1723250920499,2.98977482,60708.0,60707.0,8e-07]
[1723250920661,3.30751702,60708.0,60707.0,8e-07]
[1723250920860,3.30751702,60708.0,60695.0,0.009152]
[1723250920861,1.292688,60696.0,60695.0,0.009152]
[1723250921061,1.292688,60696.0,60690.0,0.009152]
[1723250921062,0.164766,60692.0,60690.0,0.009152]
[1723250921258,0.68111292,60692.0,60690.0,0.009152]
[1723250921493,1.44017692,60692.0,60690.0,0.009152]
[1723250921724,1.76970892,60692.0,60690.0,0.009152]
[1723250922078,1.08764492,60692.0,60691.0,0.1068]
[1723250922272,1.08764492,60692.0,60691.0,0.1183952]
[1723250922273,0.75811292,60692.0,60691.0,0.1183952]
[1723250922734,1.09364492,60692.0,60691.0,0.1078]
[1723250922963,1.09364492,60692.0,60691.0,0.0001]
[1723250922964,1.08764492,60692.0,60691.0,0.0001]
[1723250923142,1.41717692,60692.0,60691.0,0.0001]
[1723250923291,1.45017692,60692.0,60691.0,0.0001]
[1723250923661,1.44017692,60692.0,60691.0,0.0001]
[1723250924354,1.42317692,60692.0,60691.0,0.0001]
[1723250924613,1.09364492,60692.0,60691.0,0.0001]
[1723250924896,1.08764492,60692.0,60691.0,0.1068]
[1723250925128,1.09064492,60692.0,60691.0,0.1183952]
[1723250925352,1.09564492,60692.0,60691.0,0.1183952]
[1723250925597,1.09064492,60692.0,60691.0,0.1183952]
[1723250925827,1.09564492,60692.0,60691.0,0.1183952]
[1723250926056,1.09564492,60692.0,60691.0,0.1068]
[1723250926057,0.76611292,60692.0,60691.0,0.1068]
[1723250926295,0.003,60692.0,60691.0,0.1929]
[1723250926805,0.01,60711.0,60691.0,0.1929]
[1723250926806,0.329465,60705.0,60691.0,0.1929]
[1723250927045,0.32854692,60705.0,60693.0,0.1067]
[1723250927328,0.32854692,60705.0,60692.0,0.12182398]
[1723250927329,0.164713,60712.0,60706.0,0.164727]
[1723250927552,0.49191074,60719.0,60702.0,0.0861]
[1723250927553,0.16381492,60711.0,60707.0,0.2004757]
[1723250927835,0.16381492,60711.0,60708.0,0.1067]
[1723250928053,0.000832,60719.0,60708.0,0.1067]
[1723250928054,0.32941,60715.0,60708.0,0.1067]
[1723250928291,0.000832,60719.0,60708.0,0.1067]
[1723250928292,0.16381492,60714.0,60708.0,0.1067]
[1723250928523,0.49416,60709.0,60708.0,0.1067]
[1723250930165,0.16472,60709.0,60708.0,0.1067]
[1723250930408,0.49416,60709.0,60708.0,0.1067]
[1723250930995,0.49416,60709.0,60708.0,0.1077]
[1723250931215,0.98741492,60709.0,60708.0,0.1077]
[1723250931360,0.98741492,60709.0,60708.0,0.1127]
[1723250931563,1.64629492,60709.0,60708.0,0.006]
[1723250931779,1.91044462,60709.0,60708.0,0.006]
[1723250931975,1.91127662,60709.0,60708.0,0.001]
[1723250932179,1.92127662,60709.0,60708.0,0.001]
[1723250932382,1.92127662,60709.0,60694.0,0.1067]
[1723250932383,0.164758,60695.0,60694.0,0.1067]
[1723250933030,0.494274,60695.0,60694.0,0.1067]
[1723250933424,0.82379,60695.0,60694.0,0.1067]
[1723250933801,0.98760492,60695.0,60694.0,0.1067]
[1723250934827,0.98760492,60695.0,60691.0,0.1077152]
[1723250934828,0.82383,60692.0,60691.0,0.1077152]
[1723250935031,1.08764492,60692.0,60691.0,0.1077152]
[1723250935442,0.26381492,60692.0,60691.0,0.11940192]
[1723250935655,0.1,60692.0,60691.0,0.11940192]
[1723250935819,0.264766,60692.0,60691.0,0.11940192]
[1723250936025,0.264766,60692.0,60691.0,0.12040192]
[1723250936283,0.1,60692.0,60691.0,0.12040192]
[1723250936458,0.1,60694.0,60691.0,0.12040192]
[1723250936662,0.164765,60693.0,60692.0,0.03761764]
[1723250936864,0.1,60693.0,60692.0,0.03761764]
[1723250937651,0.164766,60692.0,60691.0,0.1137152]
[1723250937894,0.92383,60692.0,60691.0,0.1077152]
[1723250938095,0.1,60692.0,60691.0,0.1077152]
[1723250938301,0.594298,60692.0,60691.0,0.1077152]
[1723250938702,0.92383,60692.0,60691.0,0.1077152]
[1723250938835,1.08864492,60692.0,60691.0,0.1147152]
[1723250939017,1.08864492,60692.0,60691.0,0.1137152]
[1723250939677,1.08864492,60692.0,60691.0,0.0070152]
[1723250940255,0.264766,60692.0,60691.0,0.01383192]
[1723250940485,0.265766,60692.0,60691.0,0.12683192]
[1723250940691,0.265766,60692.0,60691.0,0.29760092]
[1723250940692,0.101,60692.0,60691.0,0.29760092]
[1723250940897,0.101,60692.0,60691.0,0.13283192]
[1723250941117,0.1,60694.0,60691.0,0.12583192]
[1723250941345,0.1,60694.0,60692.0,0.05463874]
[1723250941549,0.1,60694.0,60692.0,0.164765]
[1723250941783,0.164742,60701.0,60692.0,0.112]
[1723250941991,0.26381492,60700.0,60696.0,0.35859946]
[1723250942294,0.00830796,60705.0,60704.0,0.4942]
[1723250942563,0.00830796,60705.0,60704.0,1.068987]
[1723250942825,0.000832,60709.0,60705.0,0.16473]
[1723250943045,0.164726,60707.0,60704.0,0.24532]
[1723250943273,0.494193,60705.0,60704.0,0.24532]
[1723250943539,0.494193,60705.0,60704.0,0.112]
[1723250943752,0.32936892,60709.0,60704.0,0.276733]
[1723250944062,0.000832,60709.0,60705.0,0.14246766]
[1723250944287,0.000832,60709.0,60708.0,0.164722]
[1723250944533,0.000832,60709.0,60708.0,0.276722]
[1723250944754,0.000832,60709.0,60708.0,0.112]
[1723250944979,0.000832,60709.0,60708.0,0.13288622]
[1723250945222,0.001832,60709.0,60708.0,0.62705322]
[1723250945449,0.001832,60709.0,60708.0,1.04039822]
[1723250945682,0.000832,60709.0,60708.0,1.11789392]
[1723250945918,0.001832,60709.0,60708.0,1.12489392]
[1723250946140,0.000832,60709.0,60708.0,1.44733892]
[1723250947342,0.000832,60709.0,60708.0,1.45233892]
[1723250947597,0.000832,60709.0,60708.0,1.45227754]
[1723250947811,0.000832,60709.0,60708.0,1.61309246]
[1723250948042,0.000832,60719.0,60718.0,0.823477]
[1723250948271,0.000832,60719.0,60718.0,1.10122346]
[1723250948493,0.000832,60719.0,60718.0,0.360595]
[1723250948725,0.000832,60719.0,60718.0,0.689986]
[1723250949246,0.001832,60719.0,60718.0,0.702986]
[1723250949458,0.001832,60719.0,60718.0,0.72887222]
[1723250949459,0.002832,60719.0,60718.0,0.72887222]
[1723250949687,0.002832,60719.0,60718.0,1.38265422]
[1723250949688,0.001832,60719.0,60718.0,1.38265422]
[1723250949935,0.002832,60719.0,60718.0,1.38765422]
[1723250950155,0.002832,60719.0,60718.0,2.34146058]
[1723250950378,0.002832,60719.0,60718.0,2.40980862]
[1723250950600,0.001832,60719.0,60718.0,2.50347635]
[1723250951117,0.000832,60733.0,60732.0,1.152602]
[1723250951119,0.000832,60733.0,60732.0,1.358502]
[1723250951380,0.92778883,60756.0,60738.0,0.112]
[1723250951381,0.76319583,60756.0,60738.0,0.112]
[1723250951644,0.92701075,60756.0,60754.0,0.112]
[1723250951874,0.164595,60755.0,60754.0,0.112]
[1723250952361,0.16381492,60755.0,60747.0,0.112]
[1723250952582,0.164614,60748.0,60747.0,0.112]
[1723250952841,0.329208,60752.0,60747.0,0.112]
[1723250953097,0.49301292,60754.0,60747.0,0.112]
[1723250953098,0.164614,60748.0,60747.0,0.112]
[1723250953353,0.16381492,60751.0,60747.0,0.112]
[1723250953585,0.32842192,60751.0,60748.0,0.0112]
[1723250953866,0.00832,60756.0,60749.0,0.1959]
[1723250954171,0.1,60755.0,60754.0,0.165597]
[1723250954391,0.00832,60756.0,60754.0,0.0371497]
[1723250954645,0.00832,60756.0,60755.0,0.164595]
[1723250954877,0.00832,60756.0,60755.0,0.822977]
[1723250955124,0.00832,60756.0,60755.0,0.493786]
[1723250955339,0.00832,60756.0,60755.0,0.605786]
[1723250955539,0.00832,60756.0,60755.0,1.22966636]
[1723250955746,0.00832,60756.0,60755.0,1.55885736]
[1723250956173,0.00832,60756.0,60755.0,1.22966636]
[1723250956379,0.00832,60756.0,60755.0,1.06985144]
[1723250957226,0.00832,60756.0,60755.0,1.07585144]
[1723250957622,0.00832,60756.0,60755.0,1.06585144]
[1723250957833,0.00832,60756.0,60755.0,1.39504244]
[1723250958039,0.00932,60756.0,60755.0,1.07985144]
[1723250958268,0.00932,60756.0,60755.0,1.42304244]
[1723250958515,0.00832,60756.0,60755.0,1.40904244]
[1723250958724,0.00932,60756.0,60755.0,1.07985144]
[1723250958924,0.00832,60756.0,60755.0,1.06585144]
[1723250959372,0.00932,60756.0,60755.0,1.40904244]
[1723250959582,0.00832,60756.0,60755.0,1.55885736]
[1723250960204,0.00832,60756.0,60755.0,2.28284836]
[1723250960669,0.00832,60756.0,60755.0,1.55885736]
[1723250961089,0.00932,60756.0,60755.0,1.58685736]
[1723250961317,0.00832,60756.0,60755.0,1.57285736]
[1723250961531,0.00932,60756.0,60755.0,1.57285736]
[1723250961972,0.00832,60756.0,60755.0,1.92365736]
[1723250962601,0.00832,60756.0,60755.0,1.93765736]
[1723250962806,0.00932,60756.0,60755.0,1.93765736]
[1723250963255,0.00932,60756.0,60755.0,1.92365736]
[1723250963454,0.00932,60756.0,60755.0,1.93765736]
[1723250963592,0.00932,60756.0,60755.0,2.26684836]
[1723250963795,0.00932,60756.0,60755.0,1.93765736]
[1723250963996,0.00932,60756.0,60755.0,1.93365736]
[1723250964198,0.00832,60756.0,60755.0,2.88084836]
[1723250964429,0.00832,60756.0,60755.0,2.56565736]
[1723250964627,0.00932,60756.0,60755.0,2.59965736]
[1723250964829,0.00932,60756.0,60755.0,2.57965736]
[1723250965034,0.00932,60756.0,60755.0,2.57765736]
[1723250965445,0.00932,60756.0,60755.0,2.21685736]
[1723250965653,0.00932,60756.0,60755.0,1.58685736]
[1723250965864,0.00932,60756.0,60755.0,1.42304244]
[1723250966082,0.00932,60756.0,60755.0,1.93765736]
[1723250966297,0.00932,60756.0,60755.0,1.94965736]
[1723250966499,0.00932,60756.0,60755.0,2.67965736]
[1723250966500,0.00432,60756.0,60755.0,2.67965736]
[1723250966705,0.000832,60757.0,60756.0,1.269347]
[1723250966921,0.000832,60757.0,60756.0,2.14235808]
[1723250967114,0.000832,60757.0,60756.0,2.49154308]
[1723250967534,0.000832,60757.0,60756.0,2.47154308]
[1723250967734,0.000832,60757.0,60756.0,2.55894308]
[1723250967947,0.000832,60757.0,60756.0,2.57294308]
[1723250968148,0.000832,60757.0,60756.0,2.24175808]
[1723250968356,0.001832,60757.0,60756.0,2.26575808]
[1723250968565,0.001832,60757.0,60756.0,2.25575808]
[1723250969421,0.001832,60757.0,60756.0,2.24175808]
[1723250969628,0.001832,60757.0,60756.0,2.14591162]
[1723250969629,0.000832,60757.0,60756.0,2.14591162]
[1723250969836,0.001832,60757.0,60756.0,2.17391162]
[1723250971445,0.005252,60770.0,60769.0,0.164557]
[1723250971636,0.005252,60770.0,60769.0,0.21153144]
[1723250971868,0.005252,60770.0,60769.0,0.04697444]
[1723250972069,0.169806,60770.0,60769.0,0.04697444]
[1723250972267,0.169806,60770.0,60763.0,0.329146]
[1723250972268,0.005252,60770.0,60765.0,0.329136]
[1723250972489,0.005252,60770.0,60761.0,0.1052]
[1723250972682,0.005252,60770.0,60760.0,0.164581]
[1723250972683,0.329126,60767.0,60760.0,0.164581]
[1723250972854,0.329126,60767.0,60756.0,0.672364]
[1723250972855,0.32912,60768.0,60759.0,0.329167]
[1723250973070,0.1127,60769.0,60764.0,0.164569]
[1723250973405,0.26456,60768.0,60765.0,0.0164569]
[1723250973604,0.26456,60768.0,60765.0,0.0224569]
[1723250973724,0.1,60768.0,60765.0,0.0224569]
[1723250973932,0.429122,60768.0,60765.0,0.0164569]
[1723250974133,0.164565,60767.0,60765.0,0.0164569]
[1723250974542,0.164565,60767.0,60766.0,0.01880319]
[1723250974765,0.164565,60766.0,60765.0,0.0164569]
[1723250974972,0.164565,60766.0,60764.0,0.007]
[1723250974973,0.82284,60765.0,60764.0,0.007]
[1723250975177,0.680304,60765.0,60764.0,0.007]